bitfinex-derivatives/quotes_SOLF0:USTF0_20260220
["timestamp","ask_amount","ask_price","bid_price","bid_amount"]
[1771619577757,3.57813053,84.55,84.508,9.45953493]
[1771619577956,3.57813053,84.54,84.496,9.45953493]
[1771619579758,14.22723053,84.54,84.496,9.45953493]
[1771619580853,10.6503,84.53,84.496,9.45953493]
[1771619581048,14.22843053,84.53,84.496,9.45953493]
[1771619581655,14.22843053,84.53,84.486,7.08]
[1771619581855,14.22843053,84.53,84.486,16.78385231]
[1771619582057,14.22843053,84.53,84.487,9.70385231]
[1771619582659,10.6503,84.53,84.487,9.70385231]
[1771619587160,3.57813053,84.53,84.487,9.70385231]
[1771619587356,3.57813053,84.53,84.486,7.08]
[1771619587563,3.57813053,84.52,84.486,7.08]
[1771619588664,10.6517,84.519,84.486,7.08]
[1771619590264,10.6528,84.51,84.486,7.08]
[1771619590460,10.6528,84.51,84.463,9.62228638]
[1771619590461,3.57813053,84.51,84.463,9.62228638]
[1771619590766,10.6536,84.504,84.463,9.62228638]
[1771619591455,3.57813053,84.51,84.463,9.62228638]
[1771619591866,3.57813053,84.5,84.463,9.62228638]
[1771619592068,3.57813053,84.49,84.447,9.60581943]
[1771619592864,10.6555,84.489,84.447,9.60581943]
[1771619593263,3.57813053,84.49,84.447,9.60581943]
[1771619593469,3.57813053,84.49,84.385,21.3371]
[1771619593470,3.57813053,84.48,84.435,9.60702589]
[1771619593667,10.6567,84.479,84.435,9.60702589]
[1771619593869,3.59065403,84.47,84.421,9.60705332]
[1771619594367,10.6581,84.468,84.421,9.60705332]
[1771619594567,10.6581,84.468,84.374,2.06073239]
[1771619594568,3.59065403,84.45,84.401,9.59634239]
[1771619594766,3.59065403,84.45,84.414,7.06]
[1771619596057,3.59065403,84.44,84.414,7.06]
[1771619596258,10.6621,84.436,84.368,9.59637847]
[1771619596467,236.68,84.496,84.39,3.59065403]
[1771619596662,3.59065403,84.45,84.4,3.59065403]
[1771619596865,3.59065403,84.47,84.411,9.48905244]
[1771619598361,3.59065403,84.47,84.41,3.59065403]
[1771619598362,3.59065403,84.48,84.421,9.48917848]
[1771619598557,3.59065403,84.49,84.431,9.50834029]
[1771619598761,21.2971,84.544,84.372,165.9803]
[1771619598762,3.59065403,84.5,84.451,9.50834029]
[1771619599366,10.6544,84.498,84.451,9.50834029]
[1771619600170,3.59065403,84.51,84.46,3.59065403]
[1771619600359,3.59065403,84.51,84.461,9.50844769]
[1771619600768,3.59065403,84.52,84.461,9.50844769]
[1771619600967,3.59065403,84.52,84.47,3.59065403]
[1771619601171,3.59065403,84.52,84.471,9.50436412]
[1771619601969,10.6511,84.524,84.471,9.50436412]
[1771619602768,3.59065403,84.52,84.471,9.50436412]
[1771619603370,10.6517,84.519,84.471,9.50436412]
[1771619604172,3.59065403,84.53,84.481,9.31580775]
[1771619604768,3.59065403,84.54,84.491,9.33027081]
[1771619605570,3.59065403,84.55,84.5,3.59065403]
[1771619605763,3.59065403,84.56,84.511,9.33050967]
[1771619607071,3.59065403,84.56,84.51,3.59065403]
[1771619607072,3.59065403,84.55,84.496,9.34815923]
[1771619607576,14.23845403,84.55,84.496,9.34815923]
[1771619607969,10.6478,84.55,84.496,9.34815923]
[1771619608170,10.6503,84.53,84.471,9.34837942]
[1771619608779,10.6491,84.54,84.473,9.27089254]
[1771619608971,9.59980738,84.55,84.473,9.27089254]
[1771619609171,9.59980738,84.55,84.475,9.27089254]
[1771619609790,10.6505,84.529,84.475,9.27089254]
[1771619617994,10.6513,84.522,84.475,9.27089254]
[1771619619686,10.6503,84.53,84.475,9.27089254]
[1771619619887,9.59980738,84.55,84.475,9.27089254]
[1771619620087,9.59980738,84.57,84.475,9.27089254]
[1771619620693,10.6492,84.539,84.494,9.26531536]
[1771619623091,10.65,84.532,84.494,9.26531536]
[1771619623395,10.65,84.532,84.482,9.27125466]
[1771619625695,10.65,84.532,84.486,9.23170145]
[1771619626899,10.65,84.532,84.488,9.23187073]
[1771619628098,10.6492,84.539,84.494,9.23211627]
[1771619628297,10.6492,84.539,84.501,9.23211627]
[1771619629697,10.6492,84.539,84.502,9.23271165]
[1771619630994,3.58455912,84.55,84.487,9.27227339]
[1771619631198,3.58455912,84.53,84.487,9.27227339]
[1771619631400,3.58455912,84.54,84.487,9.27227339]
[1771619631898,10.65,84.532,84.487,9.27227339]
[1771619633797,10.65,84.532,84.455,21.3194]
[1771619633798,3.58455912,84.55,84.495,9.21495975]
[1771619634395,10.648,84.549,84.503,10.6536]
[1771619634998,10.6487,84.543,84.503,10.6536]
[1771619635397,3.58455912,84.55,84.503,10.6536]
[1771619635603,3.58455912,84.55,84.503,19.87913098]
[1771619635796,3.58455912,84.55,84.504,9.2257594]
[1771619636299,10.6478,84.55,84.508,9.2257594]
[1771619636505,3.58455912,84.57,84.511,9.2257594]
[1771619637100,10.6452,84.571,84.525,9.2170357]
[1771619637798,3.58455912,84.58,84.533,10.6498]
[1771619637998,3.58455912,84.58,84.534,9.21726375]
[1771619638500,10.6439,84.581,84.534,9.21726375]
[1771619638704,10.6439,84.581,84.537,9.23801292]
[1771619639498,10.6439,84.581,84.54,3.58455912]
[1771619639807,10.6439,84.581,84.541,9.23822488]
[1771619640201,9.59020891,84.61,84.52,9.59020891]
[1771619640202,10.6424,84.593,84.543,9.23822488]
[1771619641107,10.6432,84.587,84.545,9.0692069]
[1771619644102,10.6422,84.594,84.545,9.0692069]
[1771619644508,11.60981219,84.609,84.545,9.0692069]
[1771619644709,9.59020891,84.61,84.545,9.0692069]
[1771619646110,21.32639327,84.61,84.545,9.0692069]
[1771619646302,10.6434,84.585,84.545,9.0692069]
[1771619646907,35.48,84.609,84.533,8.99605408]
[1771619648007,10.6439,84.581,84.533,8.99605408]
[1771619648711,10.6448,84.574,84.533,8.99605408]
[1771619649106,10.6456,84.568,84.521,9.05896229]
[1771619650211,10.6456,84.568,84.523,9.059231]
[1771619652412,35.48,84.589,84.523,9.059231]
[1771619652613,35.48,84.589,84.467,21.3163]
[1771619652614,9.59020891,84.57,84.505,9.07612215]
[1771619653009,10.6473,84.554,84.506,9.07612215]
[1771619653209,35.48,84.586,84.506,9.07612215]
[1771619654111,10.6479,84.549,84.506,9.07612215]
[1771619654507,35.48,84.589,84.506,9.07612215]
[1771619654710,10.6464,84.561,84.513,9.06924974]
[1771619655012,35.48,84.585,84.494,9.06924974]
[1771619655212,9.59020891,84.57,84.494,9.06924974]
[1771619655720,9.59020891,84.57,84.493,10.99285307]
[1771619655721,10.6479,84.55,84.499,9.06949667]
[1771619656416,10.6479,84.55,84.502,9.06949667]
[1771619657916,10.6479,84.55,84.505,9.07739349]
[1771619659216,10.6485,84.544,84.505,9.07739349]
[1771619659814,10.6495,84.536,84.493,9.07742711]
[1771619661223,10.6495,84.536,84.495,9.07328025]
[1771619663027,10.6495,84.536,84.499,9.0740453]
[1771619664327,35.48,84.584,84.511,9.07426928]
[1771619664328,3.58466662,84.56,84.511,9.07426928]
[1771619664522,3.58466662,84.57,84.52,3.58466662]
[1771619664826,3.58466662,84.58,84.521,9.08216484]
[1771619665727,10.646,84.564,84.525,9.08238072]
[1771619667132,3.58466662,84.57,84.527,10.6506]
[1771619668827,10.6453,84.569,84.527,10.6506]
[1771619669418,3.58466662,84.57,84.52,3.58466662]
[1771619669419,10.6464,84.561,84.52,3.58466662]
[1771619669619,3.58466662,84.55,84.513,9.10411875]
[1771619669827,3.58466662,84.57,84.513,9.10411875]
[1771619670130,3.58466662,84.57,84.521,9.10431704]
[1771619670727,10.6455,84.568,84.527,9.10277138]
[1771619670927,3.58466662,84.58,84.527,9.10277138]
[1771619671227,3.58466662,84.58,84.531,9.10277138]
[1771619671423,3.58466662,84.58,84.536,9.10277138]
[1771619671619,3.58466662,84.6,84.541,9.10296578]
[1771619671824,10.642,84.596,84.55,9.10296578]
[1771619672027,10.642,84.596,84.551,9.10296578]
[1771619672829,10.642,84.596,84.553,9.10228303]
[1771619673828,10.642,84.596,84.555,9.1024733]
[1771619686130,10.6451,84.571,84.533,9.15427593]
[1771619687437,10.6451,84.571,84.534,10.6497]
[1771619687637,10.6444,84.577,84.535,9.14927301]
[1771619688931,10.6451,84.571,84.535,9.14927301]
[1771619689140,3.58466662,84.56,84.521,9.10466962]
[1771619690739,10.6475,84.553,84.521,9.10466962]
[1771619690939,3.58466662,84.55,84.501,9.10652959]
[1771619691538,10.648,84.549,84.501,9.10652959]
[1771619692136,3.58466662,84.54,84.49,9.10668208]
[1771619693041,10.6495,84.536,84.492,9.00478646]
[1771619694137,3.58466662,84.54,84.492,9.00478646]
[1771619695135,3.58466662,84.54,84.494,9.00292912]
[1771619697041,14.23376662,84.54,84.494,9.00292912]
[1771619700439,3.58466662,84.54,84.494,9.00292912]
[1771619701445,10.648,84.548,84.496,9.01552946]
[1771619701743,10.648,84.548,84.471,11.01345122]
[1771619701744,10.647,84.556,84.501,9.01568901]
[1771619701936,3.58466662,84.57,84.514,9.01568901]
[1771619702937,10.6456,84.568,84.514,9.01568901]
[1771619703748,10.6456,84.568,84.515,9.02993008]
[1771619704145,10.6464,84.561,84.515,9.02993008]
[1771619704945,10.6451,84.571,84.521,8.99208484]
[1771619705145,10.6451,84.571,84.531,8.99208484]
[1771619705851,3.58466662,84.58,84.531,8.99208484]
[1771619706050,3.58466662,84.59,84.531,8.99208484]
[1771619706647,10.6431,84.587,84.539,9.02868571]
[1771619707043,3.58466662,84.58,84.539,9.02868571]
[1771619707243,3.58466662,84.57,84.521,9.02868571]
[1771619707549,11.01789562,84.617,84.521,9.02868571]
[1771619707550,3.58466662,84.56,84.521,9.02868571]
[1771619707749,3.58466662,84.57,84.521,9.02868571]
[1771619708857,10.6457,84.567,84.521,9.02868571]
[1771619709553,3.58466662,84.57,84.521,9.02868571]
[1771619709856,10.6447,84.574,84.521,9.02868571]
[1771619710752,10.6447,84.574,84.523,9.27797296]
[1771619713147,3.58466662,84.57,84.523,9.27797296]
[1771619713455,10.6454,84.569,84.523,9.27797296]
[1771619716660,10.6454,84.569,84.515,10.6521]
[1771619716854,10.6462,84.562,84.516,9.28385097]
[1771619717561,10.6453,84.569,84.518,9.28385097]
[1771619718657,10.6453,84.569,84.522,10.6512]
[1771619718856,10.6453,84.569,84.523,9.27840338]
[1771619719161,10.6461,84.563,84.523,9.27840338]
[1771619719350,3.58220857,84.57,84.511,9.27840338]
[1771619720652,10.6471,84.555,84.511,10.6526]
[1771619720862,10.6471,84.555,84.512,9.29514912]
[1771619721452,10.6471,84.555,84.515,9.29514912]
[1771619722762,10.6481,84.548,84.515,9.29514912]
[1771619723958,3.58220857,84.56,82.572,259.72360255]
[1771619723959,10.6489,84.541,84.502,9.21360323]
[1771619725667,10.6481,84.547,84.505,9.21808754]
[1771619726169,10.6481,84.547,84.506,9.21808754]
[1771619726760,10.6481,84.547,84.508,9.22049025]
[1771619727659,10.6481,84.547,84.51,9.22056818]
[1771619730364,10.6473,84.554,84.51,9.22056818]
[1771619732071,3.58220857,84.58,84.521,9.13576506]
[1771619732570,3.58220857,84.57,84.521,9.13576506]
[1771619733765,10.6457,84.567,84.521,9.13576506]
[1771619734667,10.6457,84.567,84.522,10.6511]
[1771619734872,10.6457,84.567,84.523,9.13646039]
[1771619735772,10.6457,84.567,84.526,9.13654585]
[1771619736671,10.6463,84.562,84.526,9.13654585]
[1771619737972,10.6471,84.556,84.512,10.6525]
[1771619738170,10.6471,84.556,84.513,9.13680796]
[1771619738874,3.58220857,84.58,84.521,9.12790953]
[1771619739372,14.22750857,84.57,84.524,10.6509]
[1771619739571,3.58220857,84.57,84.525,9.12790953]
[1771619740764,10.646,84.564,84.525,9.12790953]
[1771619740970,3.58220857,84.57,84.525,9.12790953]
[1771619741763,3.58220857,84.57,84.528,9.18829311]
[1771619742774,10.6462,84.562,84.528,9.18829311]
[1771619744271,3.58220857,84.57,84.514,11.01345122]
[1771619744478,10.6472,84.555,84.516,9.20157637]
[1771619746171,10.6472,84.555,84.517,9.19165977]
[1771619746578,3.58220857,84.56,84.512,11.01345122]
[1771619746977,3.58220857,84.56,84.513,9.19131278]
[1771619747171,3.58220857,84.56,84.524,9.19131278]
[1771619747373,10.6455,84.568,84.524,9.19131278]
[1771619748176,10.6442,84.578,84.533,10.6498]
[1771619748377,10.6442,84.578,84.534,9.19137842]
[1771619752585,10.6452,84.571,84.534,9.19137842]
[1771619753377,10.6443,84.578,84.534,9.19137842]
[1771619760387,3.58220857,84.6,84.55,3.58220857]
[1771619760583,3.58220857,84.61,84.56,3.58220857]
[1771619760778,3.58220857,84.61,84.561,9.10108374]
[1771619761281,10.6417,84.598,84.561,9.10108374]
[1771619761483,3.58220857,84.62,84.561,9.10108374]
[1771619761788,3.58220857,84.61,84.561,9.10108374]
[1771619761986,10.6413,84.602,84.561,9.10108374]
[1771619762583,10.6413,84.602,84.562,9.10115099]
[1771619763188,10.6404,84.608,84.564,9.10588782]
[1771619765188,10.6404,84.608,84.566,9.11998442]
[1771619767393,10.6412,84.603,84.566,9.11998442]
[1771619767594,3.58220857,84.62,84.566,9.11998442]
[1771619768086,3.58220857,84.61,84.566,9.11998442]
[1771619768693,14.22250857,84.61,84.566,9.11998442]
[1771619769781,3.58220857,84.61,84.566,9.11998442]
[1771619771394,10.6409,84.605,84.566,9.11998442]
[1771619772395,3.58220857,84.61,84.568,9.11118433]
[1771619772997,10.641,84.604,84.568,9.11118433]
[1771619778302,10.6404,84.609,84.568,9.11118433]
[1771619779707,2.05753409,84.636,84.542,11.01345122]
[1771619779708,3.5788202,84.64,84.591,9.07335489]
[1771619779899,3.5788202,84.65,84.591,9.07335489]
[1771619780702,10.6366,84.639,84.594,9.07774508]
[1771619780905,3.5788202,84.65,84.594,9.07774508]
[1771619781306,10.6384,84.624,84.583,9.07774508]
[1771619782010,10.6384,84.624,84.585,9.07779963]
[1771619782415,3.5788202,84.65,84.6,3.5788202]
[1771619782710,3.5788202,84.65,84.601,9.07779963]
[1771619783712,2.05705976,84.666,84.611,9.02116912]
[1771619784011,3.5788202,84.67,84.611,9.02116912]
[1771619784706,10.634,84.659,84.613,9.03030458]
[1771619784912,3.5788202,84.67,84.62,3.5788202]
[1771619785107,3.5788202,84.68,84.621,9.03030458]
[1771619786407,3.5788202,84.68,84.63,3.5788202]
[1771619786611,3.5788202,84.68,84.631,9.03036109]
[1771619786814,10.6325,84.672,84.631,9.03036109]
[1771619791108,3.5788202,84.66,84.616,9.04122844]
[1771619791313,3.5788202,84.65,84.599,9.04122844]
[1771619791911,11.9833325,84.693,84.621,9.04128026]
[1771619791912,3.5788202,84.67,84.621,9.04128026]
[1771619792114,3.5788202,84.68,84.621,9.04128026]
[1771619792319,10.6332,84.666,84.621,9.04128026]
[1771619794817,3.5788202,84.66,84.621,9.04128026]
[1771619795114,3.5788202,84.65,84.591,9.06438755]
[1771619796613,14.2153202,84.64,84.596,9.06691265]
[1771619797017,3.5788202,84.67,84.611,9.06691265]
[1771619797218,10.6342,84.658,84.615,9.06691265]
[1771619797622,3.5788202,84.66,84.615,9.06691265]
[1771619798719,10.635,84.652,84.615,9.06691265]
[1771619800323,10.6357,84.646,84.603,9.0820654]
[1771619802325,10.6357,84.646,84.605,9.06813932]
[1771619803718,10.6357,84.646,84.607,9.06724997]
[1771619813638,3.5788202,84.63,84.583,9.05625174]
[1771619814733,10.6383,84.625,84.584,9.07112901]
[1771619818638,10.6392,84.619,84.584,9.07112901]
[1771619819734,3.5788202,84.64,84.584,9.07112901]
[1771619820537,10.638,84.628,84.586,9.06708678]
[1771619821142,10.6386,84.623,84.586,9.06708678]
[1771619821436,3.5788202,84.64,84.586,9.06708678]
[1771619821941,10.6384,84.624,84.586,9.06708678]
[1771619822736,10.6392,84.618,84.586,9.06708678]
[1771619822941,3.5788202,84.62,84.578,11.01345122]
[1771619823140,3.5788202,84.62,84.575,9.10835747]
[1771619824037,3.5788202,84.64,84.59,3.5788202]
[1771619824243,10.6364,84.641,84.598,9.10838896]
[1771619824440,10.6364,84.641,84.601,9.10838896]
[1771619825045,10.6364,84.641,84.6,3.5788202]
[1771619825046,10.6355,84.648,84.605,9.09117324]
[1771619826647,10.6355,84.648,84.606,10.6406]
[1771619826842,10.6355,84.648,84.607,9.14381118]
[1771619830244,3.5788202,84.65,84.6,11.01345122]
[1771619830449,3.5788202,84.64,84.594,11.01345122]
[1771619830646,3.5788202,84.64,84.595,9.12563822]
[1771619831248,3.5788202,84.64,84.596,9.12563822]
[1771619831747,10.6367,84.638,84.596,9.12563822]
[1771619832949,3.5788202,84.64,84.599,9.09844171]
[1771619833451,10.6358,84.645,84.599,9.09844171]
[1771619833644,10.6365,84.64,84.599,9.09844171]
[1771619835044,3.5788202,84.65,84.6,12.69591483]
[1771619835250,3.5788202,84.66,84.601,9.11709463]
[1771619835561,10.6341,84.659,84.614,9.11712099]
[1771619835747,3.5788202,84.67,84.614,9.11712099]
[1771619835943,3.5788202,84.66,84.614,9.11712099]
[1771619836353,10.6348,84.654,84.614,9.11712099]
[1771619837059,3.5788202,84.64,84.599,11.01345122]
[1771619837247,3.5788202,84.64,84.545,21.2968]
[1771619837248,3.5788202,84.65,84.591,9.11434713]
[1771619837551,3.5788202,84.66,84.614,9.11434713]
[1771619837948,3.57432147,84.66,84.614,9.11434713]
[1771619838648,10.634,84.659,84.614,9.11434713]
[1771619839753,3.57432147,84.68,84.621,9.05017013]
[1771619840753,10.6323,84.673,84.623,9.08898211]
[1771619841559,10.6314,84.68,84.632,9.08898211]
[1771619841753,3.57432147,84.68,84.632,9.08898211]
[1771619842751,10.6321,84.675,84.632,9.08898211]
[1771619845358,3.57432147,84.67,84.624,9.09622284]
[1771619845548,3.57432147,84.68,84.624,9.09622284]
[1771619846248,10.6315,84.68,84.631,9.09624728]
[1771619846856,10.6322,84.674,84.631,9.09624728]
[1771619849152,10.633,84.668,84.62,9.09834176]
[1771619852162,10.6337,84.662,84.62,9.09834176]
[1771619853461,10.6337,84.662,84.622,9.09744037]
[1771619853660,11.6903733,84.702,84.606,20.11091383]
[1771619853661,3.57432147,84.65,84.606,20.11091383]
[1771619853852,3.57432147,84.66,84.607,9.09746261]
[1771619854056,3.57432147,84.67,84.618,9.09746261]
[1771619854256,10.6324,84.673,84.621,9.09746261]
[1771619854966,10.6332,84.666,84.621,9.09746261]
[1771619856669,10.6332,84.666,84.623,9.03764655]
[1771619858072,10.6332,84.666,84.625,9.03792926]
[1771619860462,3.57432147,84.64,84.598,9.03469602]
[1771619860666,3.57432147,84.63,84.598,9.03469602]
[1771619860862,3.57432147,84.64,84.598,9.03469602]
[1771619861067,35.52,84.686,84.6,9.03475058]
[1771619861264,3.57432147,84.66,84.601,9.03475058]
[1771619862073,10.634,84.659,84.611,9.03477296]
[1771619866080,3.57432147,84.66,84.614,9.15264476]
[1771619866280,10.6332,84.666,84.614,9.15264476]
[1771619866583,3.57432147,84.68,84.621,9.15264476]
[1771619867680,10.6323,84.673,84.624,9.16050856]
[1771619868477,10.6331,84.667,84.624,9.16050856]
[1771619870183,10.6338,84.661,84.624,9.16050856]
[1771619870382,3.57432147,84.66,84.611,9.1605364]
[1771619871779,10.6345,84.655,84.611,9.1605364]
[1771619874181,10.6353,84.649,84.611,9.1605364]
[1771619879586,3.57432147,84.67,84.614,9.18842589]
[1771619879882,3.57432147,84.67,84.621,9.18842589]
[1771619880085,3.57432147,84.68,84.621,9.18842589]
[1771619880785,10.97858632,84.692,84.631,9.19253754]
[1771619880993,21.2508,84.728,84.651,9.19253754]
[1771619880994,3.57432147,84.7,84.651,9.19253754]
[1771619881185,3.57432147,84.71,84.651,9.19253754]
[1771619881491,3.57432147,84.71,84.661,9.19253754]
[1771619881787,10.6278,84.709,84.661,9.19253754]
[1771619881983,3.57432147,84.7,84.661,9.19253754]
[1771619883091,3.57432147,84.69,84.646,9.2184498]
[1771619883589,3.57432147,84.68,84.646,9.2184498]
[1771619884386,10.6317,84.678,84.629,9.21846188]
[1771619886486,10.6317,84.678,84.631,9.24040835]
[1771619886783,10.6308,84.685,84.631,9.24040835]
[1771619886990,3.57432147,84.68,84.631,9.24040835]
[1771619887183,3.57432147,84.68,84.635,9.24520302]
[1771619887487,10.6316,84.679,84.635,9.24520302]
[1771619896190,3.57432147,84.67,84.635,9.24520302]
[1771619899192,10.632,84.676,84.635,9.24520302]
[1771619899795,10.6309,84.684,84.635,9.24520302]
[1771619900197,10.6317,84.678,84.635,9.24520302]
[1771619902293,10.6317,84.678,84.636,9.32111314]
[1771619902499,10.6305,84.688,84.641,9.32111314]
[1771619903897,10.6312,84.682,84.643,9.3091184]
[1771619904097,21.2519,84.724,84.643,9.3091184]
[1771619904098,3.57234657,84.68,84.643,9.3091184]
[1771619905797,10.6319,84.676,84.643,9.3091184]
[1771619906796,3.57234657,84.65,84.61,9.25342289]
[1771619907002,3.57234657,84.66,84.61,9.25342289]
[1771619907200,3.57234657,84.65,84.61,9.25342289]
[1771619907804,3.57234657,84.67,84.611,9.25343109]
[1771619908001,3.57234657,84.67,84.62,3.57234657]
[1771619908202,3.57234657,84.67,84.621,9.25343109]
[1771619908404,3.57234657,84.68,84.621,9.25343109]
[1771619908605,10.6318,84.677,84.625,9.25343109]
[1771619909014,3.57234657,84.68,84.625,9.25343109]
[1771619909710,10.6325,84.671,84.631,9.1303098]
[1771619910999,3.57234657,84.68,84.631,9.1303098]
[1771619911000,10.6317,84.678,84.631,9.1303098]
[1771619912113,10.6324,84.672,84.631,9.1303098]
[1771619912308,3.57234657,84.68,84.633,8.85202772]
[1771619912510,3.57234657,84.68,84.597,21.2835]
[1771619912511,165.3253,84.707,84.599,8.85202772]
[1771619912710,3.57234657,84.66,84.61,3.57234657]
[1771619912902,35.52,84.695,84.611,8.87680109]
[1771619912903,3.57234657,84.67,84.611,8.87680109]
[1771619913912,3.57234657,84.67,84.62,8.87681624]
[1771619915014,10.6337,84.662,84.62,8.87681624]
[1771619917514,10.6329,84.669,84.626,8.88135855]
[1771619917908,10.6329,84.669,84.561,35.52]
[1771619917909,3.57234657,84.65,84.591,8.88084967]
[1771619918108,10.6367,84.638,84.596,8.88084967]
[1771619918418,3.57234657,84.65,84.601,8.88084967]
[1771619919411,10.6354,84.648,84.605,8.880583]
[1771619920011,10.6354,84.648,84.607,8.88059691]
[1771619927019,10.6347,84.654,84.609,8.96774206]
[1771619927920,3.57234657,84.62,84.573,8.96775328]
[1771619928120,3.57234657,84.61,84.573,8.96775328]
[1771619930418,10.6407,84.607,84.558,10.6467]
[1771619931020,3.57234657,84.6,84.555,8.97082723]
[1771619932017,10.6407,84.607,84.558,8.97649811]
[1771619932317,3.57234657,84.61,84.558,8.97649811]
[1771619933720,3.57234657,84.61,84.56,9.01307676]
[1771619934024,10.6403,84.609,84.56,9.01307676]
[1771619934720,3.57234657,84.6,84.56,9.01307676]
[1771619935515,10.6425,84.592,84.56,9.01307676]
[1771619937531,10.6413,84.601,84.56,9.01307676]
[1771619938029,3.57234657,84.61,84.561,9.03573111]
[1771619940831,10.6413,84.602,84.561,9.03573111]
[1771619941937,3.57234657,84.62,84.571,9.05280755]
[1771619942535,3.57234657,84.63,84.574,9.05280755]
[1771619942931,3.57234657,84.63,84.589,19.69682333]
[1771619943129,3.57234657,84.62,84.561,9.05412333]
[1771619943637,3.57234657,84.62,84.571,9.05413146]
[1771619943835,3.57234657,84.63,84.58,3.57234657]
[1771619944031,3.57234657,84.63,84.581,9.05413146]
[1771619944738,10.6374,84.632,84.585,9.12189512]
[1771619945836,10.6374,84.632,84.588,9.12190214]
[1771619946138,3.57234657,84.63,84.588,9.12190214]
[1771619946540,14.20884657,84.64,84.59,10.6427]
[1771619946741,21.26,84.692,84.591,9.16147622]
[1771619946941,3.57234657,84.66,84.591,9.16147622]
[1771619947738,10.6342,84.658,84.603,9.16136621]
[1771619949649,10.6342,84.658,84.605,10.6408]
[1771619949947,10.6342,84.658,84.606,9.18106695]
[1771619951748,3.57234657,84.67,84.611,9.176346]
[1771619952647,10.6339,84.66,84.612,10.6398]
[1771619952846,10.6339,84.66,84.613,9.15429639]
[1771619953349,10.6325,84.672,84.621,9.15429639]
[1771619954451,14.20374657,84.68,84.622,9.15430226]
[1771619955546,10.6304,84.688,84.635,9.13745264]
[1771619956649,10.6304,84.688,84.636,10.6369]
[1771619956949,10.6304,84.688,84.641,9.16870348]
[1771619958651,10.6304,84.688,84.641,19.80500348]
[1771619958852,10.6304,84.688,84.642,9.16993669]
[1771619959744,10.6304,84.688,84.644,9.16994199]
[1771619961552,10.6304,84.688,84.646,9.22276866]
[1771619963254,3.5711158,84.7,84.648,9.10859488]
[1771619963448,3.5711158,84.69,84.648,9.10859488]
[1771619964746,10.6303,84.689,84.648,9.10859488]
[1771619966657,10.6295,84.696,84.649,9.07528052]
[1771619967454,3.5711158,84.73,84.661,9.0976478]
[1771619967758,3.5711158,84.73,84.671,9.09765338]
[1771619968148,3.5711158,84.73,84.675,9.09765338]
[1771619968348,21.2442,84.755,84.675,9.09765338]
[1771619968557,3.5711158,84.73,84.675,9.09765338]
[1771619968852,10.6272,84.714,84.675,9.09765338]
[1771619970055,10.6283,84.705,84.663,19.75541424]
[1771619970257,10.6283,84.705,84.664,9.12191424]
[1771619972558,10.6291,84.699,84.664,9.12191424]
[1771619974460,10.6298,84.693,84.664,9.12191424]
[1771619981264,10.629,84.7,84.664,9.12191424]
[1771619981860,10.6296,84.695,84.664,9.12191424]
[1771619988267,3.5711158,84.7,84.653,9.15317207]
[1771619988472,3.5711158,84.69,84.653,9.15317207]
[1771619989773,10.6306,84.687,84.643,10.636]
[1771619990369,10.6306,84.687,84.643,19.78732885]
[1771619990970,10.6306,84.687,84.646,10.6356]
[1771619991669,10.6306,84.687,84.647,9.12037818]
[1771619994473,10.6306,84.687,84.65,9.13650767]
[1771620000888,3.5711158,84.69,84.65,9.13650767]
[1771620002588,3.5711158,84.7,84.65,9.13650767]
[1771620002792,3.5711158,84.71,84.657,9.16062812]
[1771620003184,3.5711158,84.71,84.667,9.16062812]
[1771620003381,3.5711158,84.74,84.671,9.16062812]
[1771620003695,3.5711158,84.73,84.677,9.16062812]
[1771620004485,10.6256,84.726,84.677,9.16062812]
[1771620004688,3.5711158,84.73,84.677,9.16062812]
[1771620004887,3.5711158,84.74,84.681,9.20880304]
[1771620005086,3.5711158,84.74,84.674,10.95225563]
[1771620005087,10.6235,84.743,84.691,9.20880304]
[1771620005294,2.054182,84.776,84.701,9.20880304]
[1771620005295,3.5711158,84.76,84.701,9.20880304]
[1771620005892,3.5711158,84.75,84.701,9.20880304]
[1771620007691,3.5711158,84.75,84.703,9.2025506]
[1771620008793,10.6228,84.749,84.703,9.2025506]
[1771620009595,3.5711158,84.75,84.703,9.2025506]
[1771620009797,10.6218,84.757,84.703,9.2025506]
[1771620010299,10.6227,84.75,84.703,9.2025506]
[1771620010999,10.6235,84.743,84.693,9.17985215]
[1771620013902,10.6244,84.736,84.693,9.17985215]
[1771620014090,3.5711158,84.74,84.693,9.17985215]
[1771620014296,3.5711158,84.73,84.682,9.18647074]
[1771620014692,3.5711158,84.74,84.684,9.17082336]
[1771620014891,3.5711158,84.75,84.701,9.17082336]
[1771620015092,3.5711158,84.76,84.701,9.17082336]